Cogmind - Beta 13 @@@ ROGUE MODE // 2024.05.04 @ 13:52:05 Player: Anonymous_lightbulb Result: Destroyed by as-54015 with Assembled F-torch Performance ------------- Evolutions (0) 0 Regions Visited (2) 400 Robots Destroyed (21) 105 Value Destroyed (439) 439 Prototype IDs (2) 40 Alien Tech Used (0) 0 Bonus (0) 0 TOTAL SCORE: 984 Bonus ------- None Cogmind --------- Core Integrity 0/250 Matter 300/300 Energy 88/100 System Corruption 0% Temperature Cool (26) Movement Core (150) Ox2 Location -10/Mines Parts ------- > --- POWER (1) -------- (None) > --- PROPULSION (2) --- (None) > --- UTILITY (2) ------ Heat Sink Small Storage Unit > --- WEAPON (2) ------- Small Laser > --- INVENTORY (8) ---- Wheel Compact Wheel Small Storage Unit Weapon Shielding Small Laser Peak State ------------ > --- POWER ------------ Light Ion Engine > --- PROPULSION ------- Light Treads Light Treads > --- UTILITY ---------- Small Storage Unit Weapon Shielding > --- WEAPON ----------- Small Laser Small Laser > --- INVENTORY -------- Light Ion Engine Light Ion Engine Aluminum Leg Aluminum Leg Wheel Compact Wheel Small Storage Unit Small Laser [Rating: 7] Favorites ----------- Power Light Ion Engine Engine Light Ion Engine Propulsion Light Treads Treads Light Treads Flight Unit Flight Unit Utility Small Storage Unit Device Heat Sink Storage Small Storage Unit Protection Weapon Shielding Weapon Small Laser Energy Gun Small Laser Build | -11 -10 -10 ------- Run | Yrd Mat Min Slots Evolved . | . . . Power . | . . . Propulsion . | . . . Utility . | . . . Weapon . | . . . Parts Attached 13 | 6 1 6 Power 4 | 1 . 3 Engine 4 | 1 . 3 Core . | . . . Reactor . | . . . Propulsion 4 | 2 . 2 Treads 2 | 2 . . Leg . | . . . Wheel . | . . . Hover . | . . . Flight 2 | . . 2 Utility 3 | 1 1 1 Device 1 | . . 1 Storage 1 | 1 . . Processor . | . . . Hackware . | . . . Protection 1 | . 1 . Artifact . | . . . Weapon 2 | 2 . . Energy Gun 2 | 2 . . Energy Cannon . | . . . Ballistic Gun . | . . . Ballistic Cannon . | . . . Launcher . | . . . Special Weapon . | . . . Impact Weapon . | . . . Slashing Weapon . | . . . Piercing Weapon . | . . . Special Melee Weapon . | . . . Unidentified Prototypes . | . . . Parts Lost 5 | . . 5 Power 2 | . . 2 Propulsion 2 | . . 2 Utility . | . . . Weapon 1 | . . 1 Highest Loss Streak 2 | . . 2 To Critical Strikes . | . . . Average Slot Usage (%) 90 | . 96 88 Engine 13 | . 14 13 Treads 8 | . 28 3 Flight 11 | . . 14 Device 3 | . . 4 Storage 14 | . 14 14 Protection 9 | . 10 9 Energy Gun 27 | . 28 27 Naked Turns . | . . . Heaviest Build 11 | 10 11 11 Greatest Support 40 | 40 40 40 Greatest Overweight (x) 3 | 2 . 3 Average Overweight (x) . | . . 1 Largest Inventory Capacity 8 | 8 8 8 Average Capacity 7 | 7 8 8 Most Carried 8 | 8 8 8 Average Carried 6 | 5 8 6 Final Capacity 8 | 8 8 8 Final Carried 8 | 8 8 5 Class Distribution -------------------- 100% | Mutant Dominant Class ---------------- Mutant | -10/Materials Mutant | -10/Mines Resources | -11 -10 -10 ----------- Run | Yrd Mat Min Matter Collected 320 | 238 22 60 Remotely . | . . . Salvage Created 774 | 63 62 649 Parts 47 | 2 4 41 Haulers Intercepted . | . . . Recyclers Shooed 1 | . . 1 Parts Field Recycled . | . . . Retrieved Matter . | . . . Parts Self-Destructed . | . . . Prevented . | . . . Kills | -11 -10 -10 ------- Run | Yrd Mat Min Combat Hostiles Destroyed 13 | . 1 12 Guns 13 | . 1 12 Classes Destroyed 6 | 1 2 3 Worker 1 | . . 1 Tunneler 3 | . . 3 Recycler 3 | 1 . 2 Watcher 1 | . 1 . Swarmer 3 | . . 3 Grunt 10 | . 1 9 Best Kill Streak 5 | 1 2 5 Combat Bots Only 3 | . 1 3 Max Kills in Single Turn 1 | 1 1 1 Gunslinging . | . . . Exploded . | . . . Melee . | . . . Uniques/NPCs Destroyed . | . . . Combat | -11 -10 -10 -------- Run | Yrd Mat Min Hostile Shots Fired 81 | . 5 76 Missed 22 | . 1 21 Damage Taken 633 | . 46 587 Core 257 | . 11 246 Absorbed by Shields . | . . . Redirected to Shielding 9 | . . 9 Core Remaining (%) 100 | 100 . . Volleys Fired 71 | 4 4 63 Largest 2 | 2 2 2 Hottest 80 | 80 80 80 Shots Fired 138 | 8 8 122 Gun 138 | 8 8 122 Cannon . | . . . Launcher . | . . . Special . | . . . Kinetic . | . . . Thermal 138 | 8 8 122 Explosive . | . . . Electromagnetic . | . . . Robot Hit Streak 21 | 4 7 21 Robot Miss Streak 3 | 1 1 3 Penetration Max . | . . . Secondary Targets 3 | . . 3 Max Gunslinging Chain 1 | . . 1 Shots Hit Robots 67 | 6 6 55 Core Hits 37 | 2 3 32 Critical Kills . | . . . Critical Parts Destroyed . | . . . Critical Strikes . | . . . Melee Attacks . | . . . Impact . | . . . Slashing . | . . . Piercing . | . . . Sneak Attacks . | . . . Combat Hostiles . | . . . Follow-up Attacks . | . . . Damage Inflicted 822 | 70 75 677 Guns 819 | 69 75 675 Cannons . | . . . Explosions . | . . . Melee . | . . . Ramming 3 | 1 . 2 Kinetic . | . . . Thermal 819 | 69 75 675 Explosive . | . . . Electromagnetic . | . . . Impact . | . . . Slashing . | . . . Piercing . | . . . Highest Corruption . | . . . Average Corruption . | . . . Corruption Purged . | . . . Corruption Blocked . | . . . Overload Shots . | . . . Overflow Damage . | . . . Projectiles . | . . . Explosions . | . . . Melee . | . . . Knockbacks . | . . . Impact . | . . . Kinetic . | . . . Secondary . | . . . Self-Inflicted Damage . | . . . Shots . | . . . Rammed 3 | 2 . 1 Targets Rammed 3 | 2 . 1 Kicked . | . . . Crushed . | . . . Highest Temperature 432 | 36 96 432 Average Temperature 104 | 20 49 113 Received Heat Transfer 396 | . 24 372 Effects 3 | . . 3 Energy Bleed 2 | . . 2 Damage (minor) 1 | . . 1 Siege Activations . | . . . Robots Corrupted . | . . . Combat Hostiles . | . . . Parts Fried . | . . . Impact Corruptions . | . . . Robots Melted . | . . . Combat Hostiles . | . . . Parts Melted 3 | . . 3 Heat Transferred 1850 | 150 175 1525 Parts Sabotaged . | . . . Parts Stolen . | . . . Parts Stripped . | . . . Power Chain Reactions . | . . . Alert | -11 -10 -10 ------- Run | Yrd Mat Min Peak Influence 187 | 5 45 187 Initial 17 | . 3 17 Average 61 | 1 12 93 Maximum Alert Level . | . . . Low Security (%) 100 | 100 100 100 Level 1 . | . . . Level 2 . | . . . Level 3 . | . . . Level 4 . | . . . Level 5 . | . . . High Security . | . . . Max Security . | . . . Squads Dispatched . | . . . Investigation . | . . . Extermination . | . . . Reinforcement . | . . . Assault . | . . . Garrison . | . . . Intercept . | . . . Searches Triggered . | . . . Construction Impeded . | . . . Haulers Reinforced . | . . . Active Scanning Responses . | . . . Cargo Convoy Interrupts . | . . . Stealth | -11 -10 -10 --------- Run | Yrd Mat Min Distress Signals . | . . . Communications Jammed . | . . . Distress Signals . | . . . Times Spotted 16 | . 2 14 Peak Tracking Total 4 | . 2 4 Tactical Retreats . | . . . Traps | -11 -10 -10 ------- Run | Yrd Mat Min Traps Triggered . | . . . Indirectly . | . . . Trap Hack Attempts . | . . . Triggered . | . . . Disarmed . | . . . Reprogrammed . | . . . Reused . | . . . Traps Extracted . | . . . Installed . | . . . Triggered . | . . . Machines | -11 -10 -10 ---------- Run | Yrd Mat Min Machines Disabled . | . . . Max in Single Turn . | . . . Machines Repaired . | . . . Machines Dismantled . | . . . Machines Sabotaged . | . . . Overloaded Fab Kills . | . . . Hacking | -11 -10 -10 --------- Run | Yrd Mat Min Machines Accessed 1 | . 1 . Terminals 1 | . 1 . Fabricators . | . . . Repair Stations . | . . . Recycling Units . | . . . Scanalyzers . | . . . Garrison Access . | . . . Total Hacks 8 | . 8 . Successful 5 | . 5 . Failed 3 | . 3 . Catastrophic . | . . . Database Lockouts . | . . . Manual . | . . . Terminals 8 | . 8 . Fabricators . | . . . Repair Stations . | . . . Recycling Units . | . . . Scanalyzers . | . . . Garrison Access . | . . . Terminal Hacks 5 | . 5 . Record 2 | . 2 . Prototype ID Bank 1 | . 1 . Dispatch Records 1 | . 1 . Surveillance Status 1 | . 1 . Fabricator Hacks . | . . . Repair Station Hacks . | . . . Recycling Unit Hacks . | . . . Scanalyzer . | . . . Garrison Access Hacks . | . . . Unauthorized Hacks . | . . . Terminals . | . . . Fabricators . | . . . Repair Stations . | . . . Recycling Units . | . . . Scanalyzers . | . . . Garrison Access . | . . . Data Cores Recovered . | . . . Used . | . . . Hacking Detections 1 | . 1 . Full Trace Events 1 | . 1 . Feedback Events . | . . . Feedback Blocked . | . . . Robot Schematics Acquired . | . . . Robots Built . | . . . Authchips . | . . . Time . | . . . Total Robot Build Rating . | . . . Part Schematics Acquired . | . . . Parts Built . | . . . Authchips . | . . . Time . | . . . Total Part Build Rating . | . . . Parts Repaired . | . . . Time . | . . . Parts Recycled . | . . . Recycled Matter . | . . . Retrieved Matter . | . . . Retrieved Components . | . . . Parts Scanalyzed . | . . . Part Schematics Acquired . | . . . Parts Damaged . | . . . Bothacking | -11 -10 -10 ------------ Run | Yrd Mat Min Used RIF Installer . | . . . Robots Hacked . | . . . Non-combat . | . . . Combat . | . . . Robot Hacks Applied . | . . . Relay Couplers Released . | . . . Fabnet Peak Effective % . | . . . Robots Rewired . | . . . Allies Hacked . | . . . Hacks Repelled . | . . . Allies | -11 -10 -10 -------- Run | Yrd Mat Min Total Allies . | . . . Largest Group . | . . . Highest-Rated Group . | . . . Highest-Rated Ally . | . . . Total Orders . | . . . Ally Attacks . | . . . Total Damage . | . . . Kills . | . . . Allies Corrupted . | . . . Allies Melted . | . . . Intel | -11 -10 -10 ------- Run | Yrd Mat Min Robot Analysis Total . | . . . Derelict Logs Recovered . | . . . Drone Launches . | . . . Drone Recoveries . | . . . Exploration | -11 -10 -10 ------------- Run | Yrd Mat Min Turns Passed 882 | 153 172 557 Spaces Moved 389 | 83 100 206 Core 94 | 20 . 74 Treads 188 | 63 100 25 Legs . | . . . Wheels . | . . . Hover . | . . . Flight 107 | . . 107 Fastest Speed 37 | 50 160 37 Average Speed 149 | 143 160 147 Slowest Speed 200 | 160 160 200 Overloaded Moves . | . . . Propulsion Burnouts . | . . . Robots Hopped . | . . . Cave-ins Triggered . | . . . Exploration Rate (%) 21 | 5 17 42 Regions Visited 2 Branch Regions 1 Pre-discovered Areas . | . . . Known Exits Taken . | . . . Unknown Exits Taken 2 | 1 1 . Scrap Searched . | . . . Spaces Dug . | . . . Terrain Destroyed . | . . . Melee . | . . . Projectile . | . . . AOE . | . . . Terrain Rammed . | . . . Walls Destroyed . | . . . Machines Disabled . | . . . Actions | -11 -10 -10 --------- Run | Yrd Mat Min Total 550 | 108 104 338 Wait 56 | . . 56 Move 388 | 83 99 206 Hop . | . . . Pick Up 15 | 14 . 1 Fast Attach 3 | . 1 2 Attach 7 | 6 . 1 Detach . | . . . Swap 3 | . . 3 Drop 5 | . . 5 Fire 71 | 4 4 63 Melee . | . . . Ram . | . . . Kick . | . . . Crush 2 | 1 . 1 Escape Stasis . | . . . Rewire . | . . . Trap . | . . . Miscellaneous . | . . . Route ------- -11/Scrapyard -10/Materials -10/Mines History --------- Turn | Location | Event 13 | -11/Scrapyard | Discovered new exit (range 16) 154 | -11/Scrapyard | Entered Materials 299 | -10/Materials | Discovered new exit (range 15) 306 | -10/Materials | Build established: Mutant 326 | -10/Materials | Entered Mines 559 | -10/Mines | Excavation squad dispatched 559 | -10/Mines | A large section of the Mines collapsed 727 | -10/Mines | Core integrity fell below 50% 809 | -10/Mines | Excavation squad dispatched 872 | -10/Mines | Core integrity fell below 20% 883 | -10/Mines | Destroyed by as-54015 with Assembled F-torch Last Messages --------------- U-05 Engineer lays Concrete. T-07 Excavator is excavating. K-01 Serf collects debris. U-05 Engineer lays Concrete. K-01 Serf collects debris. Acquired 10 matter. ALERT: Derelict activity in mines confirmed. Dispatching additional escorted excavation squad. T-07 Excavator destroyed. G-34 Mercenary destroyed. Switching to secondary target: G-34 Mercenary. K-01 Serf collects debris. T-07 Excavator destroyed. K-01 Serf collects debris. Lgt. Ion Engine destroyed. G-34 Mercenary destroyed. K-01 Serf collects debris. Sml. Laser destroyed. K-01 Serf collects debris. Map ----- +----------------------------------------------------+ | ?????????????????????????????????????????????????? | | ?????????????????????????????????????????????????? | | ?????????????????????????????????????????????????? | | ?????????????????????????????????????????????????? | | ?????????????????????????????????????????????????? | | ?????????????????????????????????????????????????? | | ?????????????????????????????????????????????????? | | ?????????????????????????????????????????????????? | | ?????????????????????????????????????????????????? | | ?????????????????????????????????????????????????? | | ?????????????????????????????????????????????????? | | ?????????????????????????????????????????????????? | | ?????????????????????????????????????????????????? | | ?????????????????????????????????????????????????? | | ?????????????????????????????????????????????????? | | ????????????? ?????#####?????????###????????????? | | ????????????? #????# ##?????### ##???????????? | | ????????????? #???# #????## #####???????? | | ????????????? ???# #????# ##????### | | ????????????? ??## #????? ##???# | | ????????????? ?## #?????# #? #???# | | ????????????? ?# ##????# #??# #???# # | | ?????????????# ?# ##???# #### #####%# | | ????????????## #??# ##### ## ## # | | ??????????### #???# ## #?# # | | ?????????## #???# @ #?# #### | | ?????????# #??## g[[ #?# #??? | | ?????????# #?## ! =k%! ### #??? | | ?????????# # #?# a |%! %%* [%% % * #??? | | ?????????# ## ### = * t== ##### = #??? | | ?????????# ## !% %!%! #???###=#####??? | | ?????????# ## #### = ## #?????# #??????? | | ?????????# ## #??### ###### #?????# #??????? | | ?????????# ## ##???## #????# #?????# #??????? | | ????????## # #????### #????# #?????# #??????? | | ???????## ##?????# #????# #?????# #??????? | | ???????# ###???# #????# #?????# #??????? | | #?????##[ ##??# #????? #?????# #??????? | | #######%= #### ###??? #?????# #??????? | | %*%## = ## !%* ##?? ?????? ???????? | | [==% #### = #??##?????? ???????? | | !%*= ##??## == #??????????#???????? | | ##!* ##????## ##??????????????????? | | ?## ##??????## ####???????????????????? | | ??# ##????????## ##??????????????????????? | | ??## #??????????#####???????????????????????? | | ???#### ##??????????????????????????????????????? | | ??????####???????????????????????????????????????? | | ?????????????????????????????????????????????????? | | | +----------------------------------------------------+ Best States ------------- Heat Dissipation 35 Energy Generation 10 Energy Capacity 125 Matter Stores 300 Matter Capacity 300 Sight Range 16 Terrain Scan Density 10 Weapon Shielding 33 Evasion (%) 59 Recoil Reduction 2 Item Schematics ----------------- None Robot Schematics ------------------ None Fabricated ------------ Nothing Alien Tech Used ----------------- None Achievements -------------- None Challenges ------------ None Game ------ Seed SubatomicClaymoresTorch Manual? 0 Play Time 00:10:29 Cumulative 1.5 hours Start 2024.05.04 @ 13:43:21 End 2024.05.04 @ 13:52:05 Sessions 1 Manual Loads 0 Difficulty Rogue Special Mode None Game No. 5 Rogue 5 Adventurer 0 Explorer 0 Win Type - Total 0 Types 0/0/0/0/0/0/0/0/0 Lore% 2 Gallery% 4 Achievement% 5 Wizard Run 0 Options --------- Layout 1 ASCII 0 Keyboard 0 Movement Arrows Keybinds 0 Fullscreen 1 Font 24/Smallcaps Map View 50x40 Zoom Use 0% Tactical HUD 0 Map Filters NONE Filters NONE Steam 1 RUN: a95de8c6-5f67-455f-b41a-93cbd2a38d15